Cogmind - Beta 16 @@@ ROGUE MODE // 2025.11.28 @ 00:18:44 Player: Ayera Result: Destroyed by L-31 Rogue with Katana Performance ------------- Evolutions (1) 500 Regions Visited (2) 400 Robots Destroyed (21) 105 Value Destroyed (657) 657 Prototype IDs (0) 0 Alien Tech Used (0) 0 Bonus (0) 0 TOTAL SCORE: 1662 Bonus ------- None Cogmind --------- Core Integrity 0/400 Matter 390/400 Energy 94/100 System Corruption 0% Temperature Cool (0) Movement Core (100) Ox1 Location -9/Materials Parts ------- > --- POWER (1) -------- (None) > --- PROPULSION (2) --- (None) > --- UTILITY (4) ------ Improved Heat Sink Medium Matter Pod Visual Processing Unit Melee Analysis Suite > --- WEAPON (2) ------- Katana > --- INVENTORY (5) ---- Heat Sink Terrain Scanner Grenade Launcher Datajack Katana Peak State ------------ > --- POWER ------------ Light Nuclear Core > --- PROPULSION ------- Improved Treads > --- UTILITY ---------- Improved Heat Sink Medium Matter Pod Visual Processing Unit Melee Analysis Suite > --- WEAPON ----------- Katana Katana > --- INVENTORY -------- Heat Sink Terrain Scanner Medium Laser Grenade Launcher Datajack [Rating: 20] Favorites ----------- Power Ion Engine Engine Ion Engine Power Core Light Nuclear Core Propulsion Hover Unit Treads Light Treads Leg Aluminum Leg Hover Unit Hover Unit Utility Visual Processing Unit Device Improved Heat Sink Storage Medium Matter Pod Processor Visual Processing Unit Weapon Medium Laser Energy Gun Medium Laser Ballistic Cannon Light Cannon Slashing Weapon Katana Special Melee Weapon Datajack Build | -11 -10 -9 ------- Run | Yrd Mat Mat Slots Evolved 2 | . . 2 Power . | . . . Propulsion . | . . . Utility 2 | . . 2 Weapon . | . . . Parts Attached 25 | 6 7 12 Power 4 | 1 . 3 Engine 3 | 1 . 2 Core 1 | . . 1 Reactor . | . . . Propulsion 8 | 2 3 3 Treads 4 | 2 . 2 Leg 1 | . . 1 Wheel . | . . . Hover 3 | . 3 . Flight . | . . . Utility 6 | 1 2 3 Device 2 | . . 2 Storage 2 | 1 1 . Processor 2 | . 1 1 Hackware . | . . . Protection . | . . . Artifact . | . . . Weapon 7 | 2 2 3 Energy Gun 3 | 2 . 1 Energy Cannon . | . . . Ballistic Gun . | . . . Ballistic Cannon 1 | . 1 . Launcher . | . . . Special Weapon . | . . . Impact Weapon . | . . . Slashing Weapon 2 | . . 2 Piercing Weapon . | . . . Special Melee Weapon 1 | . 1 . Unidentified Prototypes . | . . . Parts Lost 8 | . 1 7 Power 1 | . . 1 Propulsion 3 | . . 3 Utility . | . . . Weapon 4 | . 1 3 Highest Loss Streak 3 | . 1 3 To Critical Strikes . | . . . Average Backups 3 | . 3 4 Power . | . . . Propulsion . | . 1 . Utility 1 | . 1 1 Weapon . | . . 1 Tool/Special . | . . . Unused Backups 4 | . 1 3 Power . | . . . Propulsion . | . . . Utility 2 | . 1 1 Weapon 1 | . . 1 Tool/Special 1 | . . 1 Average Slot Usage (%) 96 | . 98 95 Engine 11 | . 14 8 Treads 1 | . 1 1 Leg 2 | . . 4 Hover 18 | . 26 13 Device 8 | . . 14 Storage 12 | . 14 11 Processor 15 | . 12 17 Energy Gun 14 | . 22 9 Ballistic Cannon 4 | . 4 3 Slashing Weapon 4 | . . 7 Peak Build Rating 20 | 6 8 20 Average Rating 11 | 4 7 14 On Entrance 4 | . 6 8 Avg Prop Armor Cover (%) 7 | . . 7 Naked Turns . | . . . Heaviest Build 14 | 14 14 14 Greatest Support 40 | 40 40 23 Greatest Overweight (x) 4 | 4 1 1 Average Overweight (x) . | 1 . . Largest Inventory Capacity 8 | 8 8 5 Average Capacity 5 | 7 6 5 Most Carried 5 | 2 5 5 Average Carried 3 | . 3 4 Final Capacity 8 | 8 5 5 Final Carried 5 | . 5 5 Class Distribution -------------------- 55% | Scavenger-Mutant 42% | Mutant Dominant Class ---------------- Mutant | -10/Materials Scavenger-Mutant | -9/Materials Resources | -11 -10 -9 ----------- Run | Yrd Mat Mat Matter Collected 665 | 254 223 188 Remotely . | . . . Salvage Created 780 | . 223 557 Parts 44 | . 11 33 Haulers Intercepted . | . . . Recyclers Shooed 1 | . 1 . Parts Field Recycled . | . . . Retrieved Matter . | . . . Parts Self-Destructed . | . . . Prevented . | . . . Parts Restored . | . . . Kills | -11 -10 -9 ------- Run | Yrd Mat Mat Combat Hostiles Destroyed 19 | . 4 15 Melee 9 | . . 9 Guns 5 | . 2 3 Cannons 5 | . 2 3 Classes Destroyed 6 | . 3 3 Recycler 1 | . 1 . Operator 1 | . 1 . Swarmer 3 | . . 3 Grunt 12 | . 4 8 Duelist 2 | . . 2 Sentry 2 | . . 2 Best Kill Streak 6 | . 2 6 Combat Bots Only 6 | . 2 6 Max Kills in Single Turn 1 | . 1 1 Gunslinging . | . . . Exploded . | . . . Melee 1 | . . 1 Uniques/NPCs Destroyed . | . . . Combat | -11 -10 -9 -------- Run | Yrd Mat Mat Hostile Shots Fired 127 | . 14 113 Missed 34 | . 4 30 Hits 93 | . 10 83 Melee 10 | . . 10 Projectile 83 | . 10 73 Critical Strikes 4 | . . 4 Damage Taken 1308 | . 119 1189 Core 412 | . 11 401 Absorbed by Shields . | . . . Regen/Repaired (Parts) 52 | . 24 28 Core Remaining (%) 97 | 100 95 . Volleys Fired 45 | . 12 33 Largest 2 | . 2 2 Hottest 100 | . 100 80 Shots Fired 71 | . 22 49 Gun 50 | . 18 32 Cannon 21 | . 4 17 Launcher . | . . . Special . | . . . Kinetic 21 | . 4 17 Thermal 45 | . 18 27 Explosive . | . . . Electromagnetic 5 | . . 5 Robot Hit Streak 19 | . 16 19 Robot Miss Streak 2 | . 2 2 Penetration Max . | . . . Secondary Targets 1 | . 1 . Max Gunslinging Chain 1 | . 1 . Shots Hit Robots 77 | . 19 58 Core Hits 30 | . 10 20 Critical Kills . | . . . Critical Parts Destroyed . | . . . Critical Strikes 11 | . 4 7 Burn 7 | . 3 4 Blast 1 | . 1 . Sever 3 | . . 3 Melee Attacks 41 | . 2 39 Impact . | . . . Slashing 39 | . . 39 Piercing . | . . . Sneak Attacks . | . . . Combat Hostiles . | . . . Follow-up Attacks . | . . . Damage Inflicted 1484 | . 269 1215 Guns 444 | . 178 266 Cannons 323 | . 76 247 Explosions . | . . . Melee 702 | . . 702 Ramming 15 | . 15 . Kinetic 323 | . 76 247 Thermal 403 | . 178 225 Explosive . | . . . Electromagnetic 41 | . . 41 Impact . | . . . Slashing 702 | . . 702 Piercing . | . . . Highest Corruption 3 | . 3 . Average Corruption 2 | . 2 . Corruption Purged . | . . . Corruption Blocked . | . . . Effects 9 | . 9 . Message Errors 1 | . 1 . Matter Fused 2 | . 2 . Heat Flow Errors 1 | . 1 . Energy Discharges 1 | . 1 . Data Loss (minor) 2 | . 2 . Misfires 1 | . 1 . Weapon Failures 1 | . 1 . Overload Shots . | . . . Overflow Damage 20 | . . 20 Projectiles 4 | . . 4 Explosions . | . . . Melee 16 | . . 16 Knockbacks 4 | . 1 3 Impact . | . . . Kinetic 3 | . 1 2 Secondary 1 | . . 1 Self-Inflicted Damage 7 | . 7 . Shots . | . . . Rammed 1 | . 1 . Targets Rammed 1 | . 1 . Kicked . | . . . Crushed . | . . . Highest Temperature 124 | . 124 . Average Temperature 45 | . 45 . Received Heat Transfer 363 | . 60 303 Siege Activations . | . . . Martial Activations . | . . . Shielding Activations . | . . . Robots Disrupted . | . . . Combat Hostiles . | . . . Robots Corrupted . | . . . Combat Hostiles . | . . . Parts Fried . | . . . Impact Corruptions . | . . . Robots Melted . | . . . Combat Hostiles . | . . . Parts Melted 3 | . 2 1 Heat Transferred 1702 | . 740 962 Parts Sabotaged . | . . . Parts Stolen . | . . . Parts Stripped . | . . . Power Chain Reactions . | . . . Alert | -11 -10 -9 ------- Run | Yrd Mat Mat Maximum Alert Level . | . . . Low Security (%) 100 | 100 100 100 Level 1 . | . . . Level 2 . | . . . Level 3 . | . . . Level 4 . | . . . Level 5 . | . . . High Security . | . . . Max Security . | . . . Peak Influence 150 | . 50 150 Initial . | . . . Average 16 | . 11 22 Influence Increases 511 | . 140 371 Destroy 0b10 Robot/C 380 | . 80 300 Destroy 0b10 Robot/NC 10 | . 10 . Destroy Leader 90 | . 20 70 Destroy Structure 1 | . . 1 Lose Combat Pursuer 30 | . 30 . Influence Decreases 367 | . 140 227 Time Decay 306 | . 140 166 Lost Part 61 | . . 61 Squads Dispatched 4 | . 2 2 Investigation 3 | . 2 1 Extermination . | . . . Reinforcement 1 | . . 1 Assault . | . . . Garrison . | . . . Intercept . | . . . Searches Triggered . | . . . Construction Impeded . | . . . Haulers Reinforced . | . . . Active Scanning Responses . | . . . Cargo Convoy Interrupts . | . . . Stealth | -11 -10 -9 --------- Run | Yrd Mat Mat Distress Signals 4 | . 3 1 Communications Jammed . | . . . Distress Signals . | . . . Times Spotted 26 | . 8 18 Peak Tracking Total 7 | . 3 7 Tactical Retreats 1 | . 1 . Traps | -11 -10 -9 ------- Run | Yrd Mat Mat Traps Triggered 3 | . 2 1 Indirectly . | . . . Trap Hack Attempts . | . . . Triggered . | . . . Disarmed . | . . . Reprogrammed . | . . . Reused . | . . . Traps Extracted . | . . . Installed . | . . . Triggered . | . . . Machines | -11 -10 -9 ---------- Run | Yrd Mat Mat Machines Disabled . | . . . Max in Single Turn . | . . . Machines Repaired . | . . . Machines Dismantled . | . . . Machines Sabotaged . | . . . Overloaded Fab Kills . | . . . Hacking | -11 -10 -9 --------- Run | Yrd Mat Mat Machines Accessed 4 | . 2 2 Terminals . | . . . Fabricators . | . . . Repair Stations 2 | . 1 1 Recycling Units 1 | . 1 . Scanalyzers 1 | . . 1 Garrison Access . | . . . Total Hacks 10 | . 4 6 Successful 8 | . 3 5 Failed 2 | . 1 1 Catastrophic . | . . . Database Lockouts . | . . . Manual . | . . . Terminals . | . . . Fabricators . | . . . Repair Stations 6 | . 3 3 Recycling Units 1 | . 1 . Scanalyzers 3 | . . 3 Garrison Access . | . . . Terminal Hacks . | . . . Fabricator Hacks . | . . . Repair Station Hacks 4 | . 2 2 Scan Component 2 | . 1 1 Repair 2 | . 1 1 Recycling Unit Hacks 1 | . 1 . Report Inventory 1 | . 1 . Scanalyzer 3 | . . 3 Insert Component 1 | . . 1 Analyze 1 | . . 1 Retrieve Study 1 | . . 1 Garrison Access Hacks . | . . . Unauthorized Hacks . | . . . Terminals . | . . . Fabricators . | . . . Repair Stations . | . . . Recycling Units . | . . . Scanalyzers . | . . . Garrison Access . | . . . Data Cores Recovered 2 | . 2 . Used . | . . . Hacking Detections 3 | . 1 2 Full Trace Events . | . . . Feedback Events . | . . . Feedback Blocked . | . . . Robot Schematics Acquired . | . . . Robots Built . | . . . Authchips . | . . . Time . | . . . Total Robot Build Rating . | . . . Part Schematics Acquired 1 | . . 1 Parts Built . | . . . Authchips . | . . . Time . | . . . Total Part Build Rating . | . . . Part Studies Acquired . | . . . Parts Repaired 2 | . 1 1 Time 52 | . 26 26 Parts Recycled . | . . . Recycled Matter . | . . . Retrieved Matter . | . . . Retrieved Components . | . . . Parts Scanalyzed 1 | . . 1 Part Schematics Acquired 1 | . . 1 Parts Damaged . | . . . Bothacking | -11 -10 -9 ------------ Run | Yrd Mat Mat Used RIF Installer . | . . . Robots Hacked 1 | . 1 . Non-combat . | . . . Combat 1 | . 1 . Robot Hacks Applied 1 | . 1 . parse_system 1 | . 1 . Relay Couplers Released . | . . . Fabnet Peak Effective % . | . . . Robots Rewired . | . . . Allies Hacked . | . . . Hacks Repelled . | . . . Allies | -11 -10 -9 -------- Run | Yrd Mat Mat Total Allies . | . . . Largest Group . | . . . Highest-Rated Group . | . . . Highest-Rated Ally . | . . . Total Orders . | . . . Ally Attacks . | . . . Total Damage . | . . . Kills . | . . . Allies Corrupted . | . . . Allies Melted . | . . . Intel | -11 -10 -9 ------- Run | Yrd Mat Mat Active Infowar (turns) 1398 | . 533 865 Optics 1398 | . 533 865 Terrain 310 | . . 310 Robot Analysis Total . | . . . Derelict Logs Recovered . | . . . Drone Launches . | . . . Drone Recoveries . | . . . Exploration | -11 -10 -9 ------------- Run | Yrd Mat Mat Turns Passed 1565 | 118 582 865 Spaces Moved 1083 | 65 588 430 Core 34 | 32 . 2 Treads 72 | 33 8 31 Legs 166 | . . 166 Wheels . | . . . Hover 811 | . 580 231 Flight . | . . . Fastest Speed 50 | 50 56 56 Average Speed 111 | 162 81 144 Slowest Speed 250 | 250 160 190 Overloaded Moves . | . . . Propulsion Burnouts . | . . . Robots Hopped . | . . . Potential Cave-ins . | . . . Cave-ins Triggered . | . . . Exploration Rate (%) 39 | 5 78 35 Regions Visited 2 Branch Regions . Pre-discovered Areas . | . . . Known Exits Taken . | . . . Unknown Exits Taken 2 | 1 1 . Scrap Searched . | . . . Spaces Dug . | . . . Terrain Destroyed . | . . . Melee . | . . . Projectile . | . . . AOE . | . . . Terrain Rammed . | . . . Walls Destroyed . | . . . Machines Disabled . | . . . Actions | -11 -10 -9 --------- Run | Yrd Mat Mat Total 1308 | 78 667 563 Wait 77 | 2 39 36 Move 1081 | 64 587 430 Hop . | . . . Pick Up 24 | 6 12 6 Fast Attach 6 | . . 6 Attach 13 | 6 3 4 Detach . | . . . Swap 11 | . 6 5 Drop 9 | . 5 4 Fire 45 | . 12 33 Melee 41 | . 2 39 Ram 1 | . 1 . Kick . | . . . Crush . | . . . Escape Stasis . | . . . Rewire . | . . . Trap . | . . . Miscellaneous . | . . . Route ------- -11/Scrapyard -10/Materials (discovered 3 exits: *Mat x2 / [*Min]) -9/Materials History --------- Turn | Location | Event 2 | -11/Scrapyard | Met Revision 17 6 | -11/Scrapyard | Discovered new exit (range 15) 119 | -11/Scrapyard | Entered Materials 120 | -10/Materials | Met a group of wandering Federalists 291 | -10/Materials | Discovered new exit (range 10) 303 | -10/Materials | Build established: Mutant 457 | -10/Materials | Repaired Hover Unit 472 | -10/Materials | Discovered new exit (range 7) 539 | -10/Materials | Discovered new exit (range 18) 701 | -10/Materials | Entered another Materials area 701 | -9/Materials | Evolved 2 slots: Utility x2 967 | -9/Materials | Repaired Hover Unit 1264 | -9/Materials | Build established: Scavenger-Mutant 1437 | -9/Materials | Core integrity fell below 50% 1553 | -9/Materials | Core integrity fell below 20% 1566 | -9/Materials | Destroyed by L-31 Rogue with Katana Last Messages --------------- 01442_ G-34 Mercenary destroyed. 01458_ Acquired Imp. Treads. 01460_ Dropped Aluminum Leg. 01460_ Acquired 10 matter. 01470_ Acquired Imp. Ion Engine. 01476_ Dropped Imp. Ion Engine. 01477_ Acquired Lgt. Nuclear Core. 01483_ Acquired 20 matter. 01506_ S-10 Pest destroyed. 01526_ Lgt. Nuclear Core destroyed. 01530_ Med. Laser destroyed. 01537_ S-10 Pest destroyed. 01545_ Processing Tank disabled. 01546_ Y-45 Defender Beam Rifle severed. 01548_ Y-45 Defender Lgt. Treads severed. 01556_ Imp. Treads destroyed. 01556_ Y-45 Defender destroyed. 01560_ Acquired Lgt. Treads. 01564_ Lgt. Treads severed. 01564_ L-31 Rogue Imp. Aluminum Leg severed. Map ----- +----------------------------------------------------+ | ????????? ???"???????# #????# """ ## #??? | | ???????#? ???????????# #????# ## #??? | | ????????? ???????????# #????# ## #??? | | ????????? ???????????# #????# #### ##### #??? | | ????????? ???????????# #????# #??# #???# #??? | | ????????? ???????????# #????# #??# #???# #??? | | ????????? ???????????# #????# #??# #???# #??? | | ???????????????????????# #????# #??# #???# #??? | | ???????????????????????# #???? ??# #???# #??? | | ???????????????????????# #???? ??# #???# #??? | | ???????????????????????# #???? ??? #???# #??? | | ???????????????????????# #???? ##??# ????# #??? | | ???????????????????????# #???? ????# ????# #??? | | ???????????????????????# #???? ????# ????# #??? | | ???????????????????????# #??????#####+##### #??? | | ???????????????????????# #??? # # #??? | | ??????????????????????## ##?? #? # #??? | | ?????????????????????## #?? # """ # #??? | | ?????????????????????? #?? # """"" # #??? | | ?????????????????????? #?# # """"" # #??? | | ??????????????????????? #?# # """"" ! + #??? | | ??????????????????????? #?# + """ # #??? | | ??????????????########?#* #??# # # #??? | | ?????????????? rg #=! #### ########### #??? | | ????????????????"" """ #[! # # #??? | | ????????????????"" """ /l@ # """ """ # #??? | | ????????????????"" """ #= """" # """ """ # #??? | | ?????????????? g # =""""" # """ """ # #??? | | ?????????????# ?#[%""""" + # #??? | | ?????????????# ??# [%= # # #??? | | ?????????????+ ???# # = # #??? | | ?????????????#######???# # =[%= # #??? | | ???????????????????????# # #####+##### #??? | | ???????????????????????# # #???#!#???# #??? | | ???????????????????????#**!!!!# #####%#####*#??? | | ???????????????????????#**!!!!# !*[%*== !%%*#??? | | ???????????????????????######## ###########!#??? | | ??????????????????????????????# #?????????# #??? | | ??????????????????????????????# #?????????# #??? | | ??????????????????????????????# ?????????# #??? | | ?????????????????????????????? ?????????# #??? | | ????????????????????????????? +????????+ #??? | | ????????????????????????????### #????????# #??? | | ??????????????????????????????## ##????????# #??? | | ???????????????????????????????# #?????????# #??? | | ???????????????????????????????# #?????????? ???? | | ???????????????????????????????# #?????????? ???? | | ???????????????????????????????# #?????????? ???? | | ???????????????????????????????+ ??????????? ???? | | ???????????????????????????????? ??????????? ???? | +----------------------------------------------------+ Best States ------------- Heat Dissipation 42 Energy Generation 14 Energy Capacity 250 Matter Stores 400 Matter Capacity 400 Sight Range 18 Terrain Scan Range 14 Terrain Scan Density 10 Evasion (%) 55 Melee Accuracy 5 Recoil Reduction 2 Item Schematics ----------------- Datajack | -9/Materials | Scanalyzed Robot Schematics ------------------ None Fabricated ------------ Nothing Repaired ---------- Hover Unit | 20% | -10/Materials Hover Unit | 6% | -9/Materials Studied --------- None Alien Tech Used ----------------- None Achievements -------------- Bumper Bots Ghost 'Em Spot Them First You Again Challenges ------------ None Game ------ Seed SmallThermicBotcube Manual? 0 Play Time 00:19:02 Cumulative 24.9 hours Start 2025.11.28 @ 00:01:05 End 2025.11.28 @ 00:18:44 Sessions 1 Manual Loads 0 Difficulty Rogue Special Mode None Game No. 47 Rogue 47 Adventurer 0 Explorer 0 Win Type - Total 0 Types 0/0/0/0/0/0/0/0/0/0 Lore% 10 Gallery% 24 Achievement% 13 Wizard Run 0 Options --------- Layout 1 ASCII 0 Keyboard 0 Movement Numpad Keybinds 0 Fullscreen 1 Font 32/SmallcapsGlow Map View 50x40 Zoom Use 0% Tactical HUD 1 Map Filters NONE Filters NONE Steam 1 RUN: fcbdec12-874b-4bc0-b627-9ac93541030c